fUSD/lending_fUSD_20250125
["ID","MTS","AMOUNT","RATE_DAILY","PERIOD"]
[350285598,1737768640896,-816.35,0.00017397,2]
[350285600,1737768640905,-500.0,0.00017397,2]
[350285602,1737768640915,-574.35,0.00017397,2]
[350285604,1737768640924,-523.1,0.00017397,2]
[350285606,1737768640933,-783.48,0.00017397,2]
[350285608,1737768640942,-1144.81,0.00017397,2]
[350285610,1737768640953,-500.0,0.00017397,2]
[350285612,1737768640963,-1520.4,0.00017397,2]
[350285614,1737768640972,-500.0,0.00017397,2]
[350285616,1737768640982,-762.25,0.00017397,2]
[350285618,1737768640991,-500.0,0.00017397,2]
[350285620,1737768641007,-1001.04,0.00017397,2]
[350285622,1737768641016,-500.0,0.00017534,2]
[350285624,1737768641026,-725.22,0.00017534,2]
[350285626,1737768641035,-500.0,0.00017534,2]
[350285628,1737768641044,-816.35,0.00017534,2]
[350285630,1737768641053,-500.0,0.00017534,2]
[350285632,1737768641062,-574.35,0.00017534,2]
[350285634,1737768641072,-523.1,0.00017534,2]
[350285636,1737768641081,-783.48,0.00017534,2]
[350285637,1737768641090,-1144.81,0.00017534,2]
[350285639,1737768641100,-500.0,0.00017534,2]
[350285641,1737768641110,-1520.4,0.00017534,2]
[350285643,1737768641119,-273.33,0.00017534,2]
[350285645,1737768641130,-762.25,0.00017534,2]
[350285647,1737768641139,-500.0,0.00017534,2]
[350285649,1737768641148,-1001.04,0.00017534,2]
[350285651,1737768641157,-500.0,0.00017671,2]
[350285653,1737768641167,-725.22,0.00017671,2]
[350285655,1737768641176,-500.0,0.00017671,2]
[350285657,1737768641185,-816.35,0.00017671,2]
[350285659,1737768641195,-500.0,0.00017671,2]
[350285661,1737768641204,-574.35,0.00017671,2]
[350285663,1737768641213,-523.1,0.00017671,2]
[350285665,1737768641222,-783.48,0.00017671,2]
[350285667,1737768641231,-1144.81,0.00017671,2]
[350285669,1737768641240,-500.0,0.00017671,2]
[350285671,1737768641250,-1520.4,0.00017671,2]
[350285673,1737768641259,-762.25,0.00017671,2]
[350285675,1737768641269,-502.36471061,0.00017671,2]
[350285677,1737768641278,-1001.04,0.00017671,2]
[350285679,1737768641287,-340.67422311,0.00017728,2]
[350285681,1737768641296,-500.0,0.00017808,2]
[350285683,1737768641305,-725.22,0.00017808,2]
[350285684,1737768641314,-500.0,0.00017808,2]
[350285685,1737768641323,-816.35,0.00017808,2]
[350285686,1737768641332,-500.0,0.00017808,2]
[350285687,1737768641341,-574.35,0.00017808,2]
[350285688,1737768641351,-523.1,0.00017808,2]
[350285689,1737768641360,-783.48,0.00017808,2]
[350285690,1737768641369,-1144.81,0.00017808,2]
[350285691,1737768641380,-500.0,0.00017808,2]
[350285692,1737768641389,-1520.4,0.00017808,2]
[350285693,1737768641399,-762.25,0.00017808,2]
[350285694,1737768641408,-199.65088122,0.00017945,2]
[350285695,1737768641417,-725.22,0.00017945,2]
[350285696,1737768641426,-500.0,0.00017945,2]
[350285697,1737768641435,-816.35,0.00017945,2]
[350285698,1737768641444,-500.0,0.00017945,2]
[350285699,1737768641454,-574.35,0.00017945,2]
[350285700,1737768641463,-523.1,0.00017945,2]
[350285701,1737768641473,-783.48,0.00017945,2]
[350285702,1737768641482,-1144.81,0.00017945,2]
[350285703,1737768641491,-500.0,0.00017945,2]
[350285704,1737768641500,-1520.4,0.00017945,2]
[350285705,1737768641509,-762.25,0.00017945,2]
[350285706,1737768641519,-1226.29453381,0.00018,2]
[350285707,1737768641527,-152.840349,0.00018079,2]
[350285708,1737768641540,-151.567143,0.00018079,2]
[350285709,1737768641549,-156.797105,0.00018079,2]
[350285710,1737768641558,-160.561758,0.00018079,2]
[350285711,1737768641568,-163.827454,0.00018079,2]
[350285712,1737768641579,-725.22,0.00018082,2]
[350285713,1737768641590,-500.0,0.00018082,2]
[350285714,1737768641603,-816.35,0.00018082,2]
[350285715,1737768641613,-500.0,0.00018082,2]
[350285716,1737768641622,-574.35,0.00018082,2]
[350285717,1737768641632,-523.1,0.00018082,2]
[350285718,1737768641642,-783.48,0.00018082,2]
[350285719,1737768641651,-1144.81,0.00018082,2]
[350285720,1737768641660,-500.0,0.00018082,2]
[350285721,1737768641670,-1520.4,0.00018082,2]
[350285722,1737768641679,-762.25,0.00018082,2]
[350285723,1737768641688,-154.05,0.00018082,2]
[350285724,1737768641698,-340.67422311,0.00018107,2]
[350285725,1737768641707,-254.37,0.00018164,2]
[350285726,1737768641716,-252.75,0.00018164,2]
[350285727,1737768641725,-253.44,0.00018164,2]
[350285728,1737768641734,-725.22,0.00018219,2]
[350285729,1737768641743,-500.0,0.00018219,2]
[350285730,1737768641752,-816.35,0.00018219,2]
[350285731,1737768641760,-500.0,0.00018219,2]
[350285732,1737768641770,-574.35,0.00018219,2]
[350285733,1737768641779,-523.1,0.00018219,2]
[350285734,1737768641788,-783.48,0.00018219,2]
[350285735,1737768641798,-1144.81,0.00018219,2]
[350285736,1737768641807,-500.0,0.00018219,2]
[350285737,1737768641815,-1520.4,0.00018219,2]
[350285738,1737768641825,-762.25,0.00018219,2]
[350285739,1737768641834,-150.75,0.000183,2]
[350285740,1737768641844,-150.75,0.000183,2]
[350285741,1737768641853,-150.75,0.000183,2]
[350285742,1737768641863,-150.75,0.000183,2]
[350285743,1737768641873,-150.75,0.000183,2]
[350285744,1737768641884,-150.75,0.000183,2]
[350285745,1737768641893,-150.75,0.000183,2]
[350285746,1737768641903,-150.75,0.000183,2]
[350285747,1737768641913,-150.75,0.000183,2]
[350285748,1737768641922,-150.75,0.000183,2]
[350285749,1737768641932,-150.75,0.000183,2]
[350285750,1737768641941,-150.75,0.000183,2]
[350285751,1737768641950,-150.75,0.000183,2]
[350285752,1737768641960,-150.75,0.000183,2]
[350285753,1737768641969,-150.75,0.000183,2]
[350285754,1737768641979,-150.75,0.000183,2]
[350285755,1737768641989,-150.75,0.000183,2]
[350285756,1737768641998,-150.75,0.000183,2]
[350285757,1737768642008,-150.75,0.000183,2]
[350285758,1737768642017,-150.75,0.000183,2]
[350285759,1737768642027,-150.75,0.000183,2]
[350285760,1737768642035,-150.75,0.000183,2]
[350285761,1737768642044,-150.75,0.000183,2]
[350285762,1737768642054,-150.75,0.000183,2]
[350285763,1737768642063,-150.75,0.000183,2]
[350285764,1737768642072,-150.75,0.000183,2]
[350285765,1737768642081,-150.75,0.000183,2]
[350285766,1737768642091,-150.75,0.000183,2]
[350285767,1737768642100,-150.75,0.000183,2]
[350285768,1737768642110,-150.75,0.000183,2]
[350285769,1737768642119,-150.75,0.000183,2]
[350285770,1737768642129,-150.75,0.000183,2]
[350285771,1737768642138,-150.75,0.000183,2]
[350285772,1737768642148,-150.75,0.000183,2]
[350285773,1737768642157,-150.75,0.000183,2]
[350285774,1737768642166,-150.75,0.000183,2]
[350285775,1737768642175,-150.75,0.000183,2]
[350285776,1737768642184,-150.75,0.000183,2]
[350285777,1737768642194,-150.75,0.000183,2]
[350285778,1737768642204,-150.75,0.000183,2]
[350285779,1737768642213,-150.75,0.000183,2]
[350285780,1737768642223,-150.75,0.000183,2]
[350285781,1737768642233,-150.75,0.000183,2]
[350285782,1737768642242,-150.75,0.000183,2]
[350285783,1737768642252,-150.75,0.000183,2]
[350285784,1737768642261,-150.75,0.000183,2]
[350285785,1737768642271,-150.75,0.000183,2]
[350285786,1737768642280,-150.75,0.000183,2]
[350285787,1737768642290,-150.75,0.000183,2]
[350285788,1737768642299,-150.75,0.000183,2]
[350285789,1737768642309,-150.75,0.000183,2]
[350285790,1737768642319,-150.75,0.000183,2]
[350285791,1737768642328,-150.75,0.000183,2]
[350285792,1737768642338,-150.75,0.000183,2]
[350285793,1737768642348,-150.75,0.000183,2]
[350285794,1737768642358,-150.75,0.000183,2]
[350285795,1737768642368,-150.75,0.000183,2]
[350285796,1737768642377,-150.75,0.000183,2]
[350285797,1737768642388,-725.22,0.00018356,2]
[350285798,1737768642397,-500.0,0.00018356,2]
[350285799,1737768642407,-816.35,0.00018356,2]
[350285800,1737768642416,-500.0,0.00018356,2]
[350285801,1737768642425,-574.35,0.00018356,2]
[350285802,1737768642434,-523.1,0.00018356,2]
[350285803,1737768642444,-783.48,0.00018356,2]
[350285804,1737768642453,-1144.81,0.00018356,2]
[350285805,1737768642462,-500.0,0.00018356,2]
[350285806,1737768642472,-1520.4,0.00018356,2]
[350285807,1737768642481,-762.25,0.00018356,2]
[350285808,1737768642491,-340.67422311,0.00018486,2]
[350285809,1737768642500,-151.567143,0.0001849,2]
[350285810,1737768642509,-725.22,0.00018493,2]
[350285811,1737768642518,-500.0,0.00018493,2]
[350285812,1737768642528,-816.35,0.00018493,2]
[350285813,1737768642539,-500.0,0.00018493,2]
[350285814,1737768642552,-574.35,0.00018493,2]
[350285815,1737768642562,-523.1,0.00018493,2]
[350285816,1737768642572,-783.48,0.00018493,2]
[350285817,1737768642583,-1144.81,0.00018493,2]
[350285818,1737768642592,-500.0,0.00018493,2]
[350285819,1737768642601,-1520.4,0.00018493,2]
[350285820,1737768642618,-762.25,0.00018493,2]
[350285821,1737768642630,-152.840349,0.00018499,2]
[350285822,1737768642640,-151.567143,0.00018602,2]
[350285823,1737768642652,-163.827454,0.00018602,2]
[350285824,1737768642663,-725.22,0.0001863,2]
[350285826,1737768642673,-500.0,0.0001863,2]
[350285828,1737768642683,-816.35,0.0001863,2]
[350285830,1737768642693,-500.0,0.0001863,2]
[350285831,1737768642711,-574.35,0.0001863,2]
[350285832,1737768642722,-523.1,0.0001863,2]
[350285834,1737768642731,-783.48,0.0001863,2]
[350285835,1737768642740,-1144.81,0.0001863,2]
[350285837,1737768642749,-500.0,0.0001863,2]
[350285839,1737768642758,-1520.4,0.0001863,2]
[350285840,1737768642767,-762.25,0.0001863,2]
[350285841,1737768642777,-151.567143,0.00018636,2]
[350285842,1737768642786,-531.64,0.00018677,2]
[350285843,1737768642796,-152.840349,0.00018678,2]
[350285845,1737768642805,-151.567143,0.00018678,2]
[350285846,1737768642815,-163.827454,0.00018692,2]
[350285847,1737768642824,-152.840349,0.00018699,2]
[350285849,1737768642833,-151.567143,0.00018699,2]
[350285851,1737768642842,-151.567143,0.00018736,2]
[350285853,1737768642851,-163.827454,0.0001874,2]
[350285855,1737768642860,-725.22,0.00018767,2]
[350285857,1737768642870,-500.0,0.00018767,2]
[350285859,1737768642880,-816.35,0.00018767,2]
[350285861,1737768642890,-500.0,0.00018767,2]
[350285863,1737768642899,-574.35,0.00018767,2]
[350285865,1737768642910,-523.1,0.00018767,2]
[350285868,1737768642919,-783.48,0.00018767,2]
[350285870,1737768642929,-1144.81,0.00018767,2]
[350285872,1737768642939,-500.0,0.00018767,2]
[350285875,1737768642948,-1520.4,0.00018767,2]
[350285879,1737768642960,-762.25,0.00018767,2]
[350285882,1737768642969,-152.840349,0.00018772,2]
[350285885,1737768642979,-151.567143,0.00018772,2]
[350285888,1737768642988,-1000.0,0.00018828,2]
[350285890,1737768642997,-151.567143,0.00018829,2]
[350285891,1737768643006,-152.840349,0.00018836,2]
[350285893,1737768643015,-163.827454,0.00018836,2]
[350285894,1737768643024,-340.67422311,0.00018866,2]
[350285895,1737768643033,-151.567143,0.00018877,2]
[350285896,1737768643043,-351.27960129,0.0001889,2]
[350285897,1737768643052,-725.22,0.00018904,2]
[350285898,1737768643062,-500.0,0.00018904,2]
[350285899,1737768643073,-816.35,0.00018904,2]
[350285900,1737768643082,-500.0,0.00018904,2]
[350285901,1737768643092,-574.35,0.00018904,2]
[350285902,1737768643101,-523.1,0.00018904,2]
[350285903,1737768643111,-783.48,0.00018904,2]
[350285904,1737768643120,-1144.81,0.00018904,2]
[350285905,1737768643132,-420.65474295,0.00018904,2]
[350285906,1737768643143,-1520.4,0.00018904,2]
[350285907,1737768643152,-762.25,0.00018904,2]
[350285908,1737768643162,-151.567143,0.00018952,2]
[350285909,1737768643171,-152.840349,0.00018966,2]
[350285910,1737768643180,-163.827454,0.00018966,2]
[350285911,1737768643189,-650.0,0.00019,2]
[350285912,1737768643198,-151.567143,0.00019014,2]
[350285913,1737768643207,-725.22,0.00019041,2]
[350285914,1737768643217,-500.0,0.00019041,2]
[350285915,1737768643228,-816.35,0.00019041,2]
[350285916,1737768643237,-500.0,0.00019041,2]
[350285917,1737768643246,-574.35,0.00019041,2]
[350285918,1737768643255,-523.1,0.00019041,2]
[350285919,1737768643264,-783.48,0.00019041,2]
[350285920,1737768643275,-1144.81,0.00019041,2]
[350285921,1737768643284,-1520.4,0.00019041,2]
[350285922,1737768643293,-762.25,0.00019041,2]
[350285923,1737768643303,-151.567143,0.00019151,2]
[350285924,1737768643312,-725.22,0.00019178,2]
[350285925,1737768643331,-500.0,0.00019178,2]
[350285926,1737768643343,-816.35,0.00019178,2]
[350285927,1737768643355,-531.75529522,0.00019178,2]
[350285928,1737768643365,-574.35,0.00019178,2]
[350285929,1737768643375,-523.1,0.00019178,2]
[350285930,1737768643387,-783.48,0.00019178,2]
[350285931,1737768643396,-1144.81,0.00019178,2]
[350285932,1737768643406,-1520.4,0.00019178,2]
[350285933,1737768643416,-762.25,0.00019178,2]
[350285934,1737768643426,-152.840349,0.00019183,2]
[350285935,1737768643437,-163.827454,0.00019183,2]
[350285936,1737768643447,-151.567143,0.0001924,2]
[350285937,1737768643456,-340.67422311,0.00019245,2]
[350285938,1737768643468,-725.22,0.00019315,2]
[350285939,1737768643478,-500.0,0.00019315,2]
[350285940,1737768643488,-816.35,0.00019315,2]
[350285941,1737768643497,-574.35,0.00019315,2]
[350285942,1737768643506,-523.1,0.00019315,2]
[350285943,1737768643516,-783.48,0.00019315,2]
[350285944,1737768643525,-1144.81,0.00019315,2]
[350285945,1737768643536,-1520.4,0.00019315,2]
[350285946,1737768643548,-762.25,0.00019315,2]
[350285947,1737768643557,-559.54644052,0.00019349,2]
[350285949,1737768643567,-200.0,0.00019359,2]
[350285950,1737768643579,-559.54644052,0.00019402,2]
[350285951,1737768643588,-559.54644052,0.00019439,2]
[350285952,1737768643598,-725.22,0.00019452,2]
[350285953,1737768643607,-500.0,0.00019452,2]
[350285954,1737768643616,-816.35,0.00019452,2]
[350285955,1737768643627,-574.35,0.00019452,2]
[350285956,1737768643638,-523.1,0.00019452,2]
[350285957,1737768643647,-783.48,0.00019452,2]
[350285958,1737768643656,-1144.81,0.00019452,2]
[350285959,1737768643667,-1520.4,0.00019452,2]
[350285960,1737768643676,-762.25,0.00019452,2]
[350285961,1737768643686,-200.0,0.00019466,2]
[350285962,1737768643695,-200.0,0.00019477,2]
[350285963,1737768643704,-559.54644052,0.00019489,2]
[350285964,1737768643715,-559.54644052,0.00019492,2]
[350285972,1737768643852,-152.840349,0.00019514,2]
[350285973,1737768643863,-151.567143,0.00019514,2]
[350285974,1737768643872,-725.44486945,0.00019589,2]
[350285975,1737768643882,-325.24,0.00019589,2]
[350285976,1737768643891,-816.55264672,0.00019589,2]
[350285977,1737768643900,-574.39745541,0.00019589,2]
[350285978,1737768643910,-523.23443836,0.00019589,2]
[350285979,1737768643919,-783.69490231,0.00019589,2]
[350285980,1737768643929,-1144.86281835,0.00019589,2]
[350285981,1737768643939,-1520.47195315,0.00019589,2]
[350285982,1737768643948,-762.37161526,0.00019589,2]
[350285983,1737768643958,-505.76,0.000196,2]
[350285984,1737768643967,-340.67422311,0.00019624,2]
[350285985,1737768643977,-163.827454,0.00019788,2]
[350285986,1737768643986,-39745.17375107,0.000198,2]
[350285987,1737768643996,-2000.0,0.00019844,3]
[350285988,1737768644006,-74949.6721484,0.0001987,2]
[350285989,1737768644015,-2792.27,0.000199,2]
[350285990,1737768644025,-151.567143,0.00019925,2]
[350285991,1737768644034,-150.0,0.00019973,2]
[350285992,1737768644044,-1875.7524024,0.0002,2]
[350285993,1737768644053,-251.20927744,0.0002,2]
[350285994,1737768644063,-241.32556646,0.0002,2]
[350285995,1737768644072,-160.88371098,0.0002,2]
[350285996,1737768644082,-1221042.36932768,0.0002,2]
[350285997,1737768644092,-700.0,0.0002,2]
[350285998,1737768644102,-700.0,0.0002,2]
[350285999,1737768644111,-700.0,0.0002,2]
[350286000,1737768644120,-491.70027711,0.0002,2]
[350286001,1737768644130,-813.95634871,0.0002,2]
[350286002,1737768644139,-932.2252169,0.0002,21]
[350286003,1737768644148,-340.67422311,0.00020003,2]
[350286004,1737768644158,-2110.0,0.00020005,2]
[350286005,1737768644168,-152.840349,0.00020062,2]
[350286006,1737768644177,-1147.81,0.000201,2]
[350286007,1737768644187,-1109.926,0.00020114,2]
[350286008,1737768644196,-3999.9426,0.00020145,2]
[350286009,1737768644205,-151.567143,0.00020199,2]
[350286010,1737768644214,-192.16,0.0002024,2]
[350286011,1737768644223,-1852.42,0.0002024,2]
[350286012,1737768644233,-10481.93,0.00020299,2]
[350286013,1737768644242,-250.0,0.00020334,2]
[350286014,1737768644252,-153.48,0.00020335,2]
[350286015,1737768644261,-85228.6446,0.00020353,2]
[350286016,1737768644270,-624.6,0.00020356,2]
[350286017,1737768644280,-500.0,0.00020382,2]
[350286018,1737768644289,-340.67422311,0.00020383,2]
[350286019,1737768644299,-151.0,0.00020438,2]
[350286020,1737768644308,-163.827454,0.00020473,2]
[350286021,1737768644318,-2110.0,0.00020505,2]
[350286022,1737768644328,-250.0,0.00020521,2]
[350286023,1737768644337,-500.0,0.00020552,2]
[350286024,1737768644347,-500.0,0.00020552,2]
[350286025,1737768644357,-500.0,0.00020552,2]
[350286026,1737768644366,-500.0,0.00020552,2]
[350286027,1737768644376,-500.0,0.00020552,2]
[350286028,1737768644387,-500.0,0.00020552,2]
[350286029,1737768644396,-500.0,0.00020552,2]
[350286030,1737768644405,-500.0,0.00020552,2]
[350286031,1737768644414,-500.0,0.00020552,2]
[350286032,1737768644424,-500.0,0.00020552,2]
[350286033,1737768644433,-500.0,0.00020552,2]
[350286034,1737768644443,-161.11,0.00020552,2]
[350286035,1737768644452,-500.0,0.00020552,2]
[350286036,1737768644462,-543.32,0.00020552,2]
[350286037,1737768644480,-500.0,0.00020552,2]
[350286038,1737768644494,-500.0,0.00020552,2]
[350286039,1737768644504,-500.0,0.00020552,2]
[350286040,1737768644514,-500.0,0.00020552,2]
[350286041,1737768644524,-500.0,0.00020552,2]
[350286042,1737768644533,-500.0,0.00020552,2]
[350286043,1737768644544,-500.0,0.00020552,2]
[350286044,1737768644556,-637.77,0.00020552,2]
[350286045,1737768644565,-500.0,0.00020552,2]
[350286046,1737768644575,-500.0,0.00020552,2]
[350286047,1737768644585,-500.0,0.00020552,2]
[350286048,1737768644594,-500.0,0.00020552,2]
[350286049,1737768644603,-551.19804155,0.00020553,2]
[350286050,1737768644613,-500.0,0.00020553,2]
[350286051,1737768644624,-500.0,0.00020553,2]
[350286052,1737768644637,-500.0,0.00020553,2]
[350286053,1737768644646,-151.567143,0.0002061,2]
[350286054,1737768644654,-996.35,0.00020617,2]
[350286055,1737768644664,-20151.53402152,0.000207,2]
[350286056,1737768644673,-1000.0,0.00020711,2]
[350286057,1737768644682,-152.840349,0.00020747,2]
[350286058,1737768644691,-340.67422311,0.00020762,2]
[350286059,1737768644700,-151.567143,0.00020884,2]
[350286060,1737768644711,-155389.36161413,0.000209,2]
[350286061,1737768644720,-2736.68132769,0.000209,2]
[350286062,1737768644730,-14676.01873229,0.000209,2]
[350286063,1737768644739,-531.64,0.00020941,2]
[350286064,1737768644749,-84224.30519837,0.00020999,5]
[350286065,1737768644759,-1258.0,0.00021,2]
[350286066,1737768644768,-9160.14414701,0.00021,2]
[350286067,1737768644778,-9436.9631358,0.00021,5]
[350286068,1737768644788,-900.0,0.00021,22]
[350286069,1737768644797,-10359.0,0.00021,2]
[350286070,1737768644807,-2110.0,0.00021005,2]
[350286071,1737768644817,-177.53,0.00021054,2]
[350286072,1737768644827,-200.0,0.00021054,2]
[350286073,1737768644836,-200.0,0.00021054,2]
[350286074,1737768644846,-200.0,0.00021054,2]
[350286075,1737768644856,-200.0,0.00021054,2]
[350286076,1737768644866,-200.0,0.00021054,2]
[350286077,1737768644875,-200.0,0.00021054,2]
[350286078,1737768644886,-200.0,0.00021054,2]
[350286079,1737768644895,-200.0,0.00021054,2]
[350286080,1737768644905,-200.0,0.00021054,2]
[350286081,1737768644914,-200.0,0.00021054,2]
[350286082,1737768644923,-200.0,0.00021054,2]
[350286083,1737768644932,-200.0,0.00021054,2]
[350286084,1737768644942,-200.0,0.00021054,2]
[350286085,1737768644952,-200.0,0.00021054,2]
[350286086,1737768644962,-200.0,0.00021054,2]
[350286087,1737768644972,-200.0,0.00021054,2]
[350286088,1737768644982,-200.0,0.00021054,2]
[350286089,1737768644991,-200.0,0.00021054,2]
[350286090,1737768645002,-200.0,0.00021054,2]
[350286091,1737768645012,-196.0,0.00021054,2]
[350286092,1737768645022,-350.0,0.00021068,2]
[350286093,1737768645031,-4004.93774366,0.00021107,2]
[350286094,1737768645040,-4004.93774356,0.00021107,2]
[350286095,1737768645051,-4004.93774356,0.00021107,2]
[350286096,1737768645060,-340.67422311,0.00021141,2]
[350286097,1737768645070,-151.567143,0.00021295,2]
[350286098,1737768645080,-163.827454,0.00021295,2]
[350286099,1737768645089,-31410.33487761,0.000213,2]
[350286100,1737768645099,-2792.27,0.000214,2]
[350286101,1737768645108,-1584959.40238758,0.000214,2]
[350286102,1737768645117,-152.840349,0.00021432,2]
[350286103,1737768645126,-152.0,0.00021492,3]
[350286104,1737768645136,-2566.42775147,0.000215,2]
[350286105,1737768645145,-2110.0,0.00021505,2]
[350286106,1737768645155,-4498.30756866,0.0002152,2]
[350286107,1737768645164,-340.67422311,0.00021521,2]
[350286108,1737768645173,-151.567143,0.00021569,2]
[350286109,1737768645183,-700.0,0.000216,7]
[350286110,1737768645193,-450.0,0.00021616,2]
[350286111,1737768645202,-700.0,0.000217,7]
[350286112,1737768645212,-7245.45134355,0.000217,2]
[350286113,1737768645221,-150.0,0.00021752,2]
[350286114,1737768645231,-150.0,0.00021779,2]
[350286115,1737768645240,-1223.12888,0.0002178,2]
[350286116,1737768645250,-1107.0,0.000218,7]
[350286117,1737768645260,-184.90324663,0.000218,2]
[350286118,1737768645270,-1615.02956254,0.000218,2]
[350286119,1737768645279,-21188.69969914,0.000218,2]
[350286120,1737768645289,-2726.73098621,0.000218,2]
[350286121,1737768645298,-5434.0,0.000218,2]
[350286122,1737768645308,-445.40511869,0.000218,2]
[350286123,1737768645318,-1341.72845272,0.00021889,2]
[350286124,1737768645329,-2000.0,0.0002189,2]
[350286125,1737768645339,-150.0,0.00021892,2]
[350286126,1737768645348,-150.0,0.00021896,2]
[350286127,1737768645358,-5000.0,0.000219,2]
[350286128,1737768645367,-1478.272,0.000219,2]
[350286129,1737768645377,-223.12506786,0.000219,2]
[350286130,1737768645388,-443.21056091,0.000219,2]
[350286131,1737768645397,-1341.72845272,0.000219,2]
[350286132,1737768645407,-150.4683104,0.000219,2]
[350286133,1737768645417,-340.67422311,0.000219,3]
[350286134,1737768645426,-150.0,0.00021905,2]
[350286135,1737768645436,-150.0,0.00021918,2]
[350286136,1737768645446,-150.0,0.00021918,2]
[350286137,1737768645455,-4199.56974825,0.00021937,2]
[350286138,1737768645465,-150.0,0.00021973,4]
[350286139,1737768645474,-166.51923396,0.00021973,4]
[350286140,1737768645484,-150.0,0.00021973,4]
[350286141,1737768645493,-224.00442563,0.00021973,4]
[350286142,1737768645503,-3222.9170066,0.00021985,2]
[350286143,1737768645515,-3688.4424921,0.00021985,2]
[350286144,1737768645527,-4153.9679776,0.00021985,2]
[350286145,1737768645540,-4619.493463,0.00021985,2]
[350286146,1737768645554,-5085.0189485,0.00021985,2]
[350286147,1737768645566,-1246.2195246,0.00021985,2]
[350286148,1737768645579,-1426.226316,0.00021985,2]
[350286149,1737768645590,-1606.2331074,0.00021985,2]
[350286150,1737768645600,-1786.2398988,0.00021985,2]
[350286151,1737768645611,-1966.2466901,0.00021985,2]
[350286152,1737768645624,-150.0,0.00021986,4]
[350286153,1737768645635,-195031.31983308,0.0002199,14]
[350286154,1737768645647,-996.49421532,0.0002199,2]
[350286155,1737768645658,-2757.3915211,0.0002199,2]
[350286156,1737768645669,-1066.2127333,0.0002199,2]
[350286157,1737768645680,-379.73110039,0.00021998,2]
[350286158,1737768645690,-500.0,0.00021998,2]
[350286159,1737768645702,-500.0,0.00021998,2]
[350286160,1737768645713,-500.0,0.00021998,3]
[350286161,1737768645725,-500.0,0.00021998,2]
[350286162,1737768645736,-500.0,0.00021998,2]
[350286163,1737768645748,-500.0,0.00021998,2]
[350286164,1737768645759,-482.64147707,0.00021998,2]
[350286165,1737768645771,-500.0,0.00021998,2]
[350286167,1737768645782,-266.88908536,0.00021998,2]
[350286169,1737768645795,-500.0,0.00021998,2]
[350286171,1737768645805,-500.0,0.00021998,2]
[350286173,1737768645815,-500.0,0.00021998,2]
[350286174,1737768645825,-500.0,0.00021998,2]
[350286175,1737768645837,-500.0,0.00021998,2]
[350286176,1737768645848,-515.78825106,0.00021998,2]
[350286177,1737768645859,-500.0,0.00021998,2]
[350286178,1737768645870,-516.23903111,0.00021998,2]
[350286181,1737768645882,-500.0,0.00021998,2]
[350286183,1737768645894,-2000.0,0.00021998,30]
[350286185,1737768645905,-500.0,0.00021998,2]
[350286187,1737768645916,-464.93550251,0.00021998,2]
[350286189,1737768645927,-500.0,0.00021998,2]
[350286191,1737768645939,-500.0,0.00021998,2]